[Event "NJSK 2022 Jeugd A"]
[Site "Almelo, Netherlands"]
[Date "2022.05.05"]
[Round "5.3"]
[White "Elgersma, Onno"]
[Black "Maters, Arthur"]
[Result "1-0"]
[TimeControl "90min/40moves + 30min + 30sec/move"]
[WhiteElo "2303"]
[BlackElo "2048"]

1. e4 {[%clk 01:30:11]} {[%emt 00:00:49]} d6 {[%clk 01:30:46]} {[%emt
00:00:15]} 2. Nf3 {[%clk 01:29:56]} {[%emt 00:00:44]} Nf6 {[%clk 01:31:07]}
{[%emt 00:00:09]} 3. Nc3 {[%clk 01:28:57]} {[%emt 00:01:29]} e5 {[%clk
01:31:30]} {[%emt 00:00:07]} 4. d4 {[%clk 01:27:07]} {[%emt 00:02:20]} Nbd7
{[%clk 01:31:36]} {[%emt 00:00:24]} 5. Bc4 {[%clk 01:27:21]} {[%emt 00:00:16]}
Be7 {[%clk 01:31:59]} {[%emt 00:00:07]} 6. O-O {[%clk 01:27:03]} {[%emt
00:00:48]} c6 {[%clk 01:31:53]} {[%emt 00:00:36]} 7. a4 {[%clk 01:26:12]}
{[%emt 00:01:21]} Qc7 {[%clk 01:32:13]} {[%emt 00:00:10]} 8. Re1 {[%clk
01:25:07]} {[%emt 00:01:35]} h6 {[%clk 01:32:22]} {[%emt 00:00:22]} 9. Ba2
{[%clk 01:22:01]} {[%emt 00:03:35]} O-O {[%clk 01:31:51]} {[%emt 00:01:01]} 10.
h3 {[%clk 01:17:21]} {[%emt 00:05:09]} Re8 {[%clk 01:31:30]} {[%emt 00:00:52]}
11. Be3 {[%clk 01:12:37]} {[%emt 00:05:14]} b6 {[%clk 01:31:32]} {[%emt
00:00:28]} 12. Qd3 {[%clk 01:10:37]} {[%emt 00:02:29]} a6 {[%clk 01:18:20]}
{[%emt 00:13:43]} 13. Qc4 {[%clk 00:53:42]} {[%emt 00:17:25]} Rf8 {[%clk
01:18:39]} {[%emt 00:00:11]} 14. Nh4 {[%clk 00:51:36]} {[%emt 00:02:35]} exd4
{[%clk 01:10:11]} {[%emt 00:08:59]} 15. Bxd4 {[%clk 00:51:38]} {[%emt
00:00:28]} Ne5 {[%clk 01:10:24]} {[%emt 00:00:17]} 16. Qe2 {[%clk 00:51:32]}
{[%emt 00:00:36]} Nh7 {[%clk 00:57:47]} {[%emt 00:13:07]} 17. Nf5 {[%clk
00:42:31]} {[%emt 00:09:30]} Bxf5 {[%clk 00:56:44]} {[%emt 00:01:34]} 18. exf5
{[%clk 00:39:49]} {[%emt 00:03:12]} Bf6 {[%clk 00:56:27]} {[%emt 00:00:46]} 19.
Rad1 {[%clk 00:39:25]} {[%emt 00:00:54]} Nd7 {[%clk 00:44:19]} {[%emt
00:12:39]} 20. Qc4 {[%clk 00:30:53]} {[%emt 00:09:02]} Ra7 {[%clk 00:33:41]}
{[%emt 00:11:09]} 21. Be3 {[%clk 00:18:13]} {[%emt 00:13:09]} d5 {[%clk
00:29:53]} {[%emt 00:04:18]} 22. Qg4 {[%clk 00:18:19]} {[%emt 00:00:23]} Kh8
{[%clk 00:19:17]} {[%emt 00:11:07]} 23. Bf4 {[%clk 00:15:42]} {[%emt 00:03:06]}
Qc8 {[%clk 00:17:23]} {[%emt 00:02:25]} 24. Bd6 {[%clk 00:15:38]} {[%emt
00:00:33]} Re8 {[%clk 00:17:12]} {[%emt 00:00:42]} 25. Qh5 {[%clk 00:14:22]}
{[%emt 00:01:46]} Nc5 {[%clk 00:15:52]} {[%emt 00:01:50]} 26. Rxe8+ {[%clk
00:10:33]} {[%emt 00:04:19]} Qxe8 {[%clk 00:16:17]} {[%emt 00:00:05]} 27. a5
{[%clk 00:10:59]} {[%emt 00:00:05]} Rd7 {[%clk 00:15:31]} {[%emt 00:01:15]} 28.
Bxc5 {[%clk 00:09:48]} {[%emt 00:01:41]} bxc5 {[%clk 00:15:57]} {[%emt
00:00:04]} 29. Na4 {[%clk 00:08:30]} {[%emt 00:01:48]} c4 {[%clk 00:12:53]}
{[%emt 00:03:33]} 30. b3 {[%clk 00:07:57]} {[%emt 00:01:03]} cxb3 {[%clk
00:11:30]} {[%emt 00:01:54]} 31. Bxb3 {[%clk 00:08:06]} {[%emt 00:00:20]} Re7
{[%clk 00:11:48]} {[%emt 00:00:12]} 32. Rf1 {[%clk 00:05:11]} {[%emt 00:03:25]}
Re1 {[%clk 00:10:33]} {[%emt 00:01:45]} 33. Nc5 {[%clk 00:04:51]} {[%emt
00:00:51]} Bd8 {[%clk 00:08:05]} {[%emt 00:02:58]} 34. Nd3 {[%clk 00:04:31]}
{[%emt 00:00:50]} Rxf1+ {[%clk 00:08:03]} {[%emt 00:00:32]} 35. Kxf1 {[%clk
00:04:56]} {[%emt 00:00:04]} Bxa5 {[%clk 00:08:15]} {[%emt 00:00:19]} 36. Qe2
{[%clk 00:04:45]} {[%emt 00:00:40]} Qc8 {[%clk 00:04:44]} {[%emt 00:04:01]} 37.
Ne5 {[%clk 00:03:15]} {[%emt 00:02:00]} Kg8 {[%clk 00:04:08]} {[%emt 00:01:06]}
38. Ba4 {[%clk 00:02:26]} {[%emt 00:01:19]} Bb4 {[%clk 00:00:59]} {[%emt
00:03:40]} 39. Nxc6 {[%clk 00:01:10]} {[%emt 00:01:46]} a5 {[%clk 00:01:23]}
{[%emt 00:00:06]} 40. Qb5 {[%clk 00:00:40]} {[%emt 00:01:00]} Kf8 {[%clk
00:00:32]} {[%emt 00:01:21]} 41. Qxd5 {[%clk 00:00:34]} {[%emt 00:00:36]} Nf6
{[%clk 00:24:19]} {[%emt 00:06:43]} 42. Qd4 {[%clk 00:21:41]} {[%emt 00:09:21]}
Be7 {[%clk 00:16:55]} {[%emt 00:07:56]} 43. Qe5 {[%clk 00:13:30]} {[%emt
00:08:40]} Qd7 {[%clk 00:14:00]} {[%emt 00:03:26]} 44. Qxa5 {[%clk 00:09:44]}
{[%emt 00:04:15]} Qd1+ {[%clk 00:10:09]} {[%emt 00:04:21]} 45. Qe1 {[%clk
00:10:10]} {[%emt 00:00:04]} Qxe1+ {[%clk 00:10:34]} {[%emt 00:00:05]} 46. Kxe1
{[%clk 00:10:36]} {[%emt 00:00:05]} Bc5 {[%clk 00:11:01]} {[%emt 00:00:04]} 47.
Ne5 {[%clk 00:09:36]} {[%emt 00:01:29]} Bd4 {[%clk 00:09:19]} {[%emt 00:02:11]}
48. Nd3 {[%clk 00:09:08]} {[%emt 00:00:59]} Ke7 {[%clk 00:09:29]} {[%emt
00:00:20]} 49. Bb3 {[%clk 00:08:08]} {[%emt 00:01:28]} Ne4 {[%clk 00:09:10]}
{[%emt 00:00:50]} 50. Ke2 {[%clk 00:08:24]} {[%emt 00:00:13]} Kf6 {[%clk
00:07:44]} {[%emt 00:01:57]} 51. g4 {[%clk 00:08:39]} {[%emt 00:00:16]} Nc3+
{[%clk 00:06:02]} {[%emt 00:02:12]} 52. Kf3 {[%clk 00:08:53]} {[%emt 00:00:14]}
g6 {[%clk 00:06:15]} {[%emt 00:00:18]} 53. fxg6 {[%clk 00:08:28]} {[%emt
00:00:55]} fxg6 {[%clk 00:06:43]} {[%emt 00:00:03]} 54. h4 {[%clk 00:08:16]}
{[%emt 00:00:42]} g5 {[%clk 00:05:47]} {[%emt 00:01:26]} 55. hxg5+ {[%clk
00:08:41]} {[%emt 00:00:04]} hxg5 {[%clk 00:06:10]} {[%emt 00:00:08]} 56. Bc4
{[%clk 00:07:01]} {[%emt 00:02:10]} Ke7 {[%clk 00:05:36]} {[%emt 00:01:04]} 57.
Kg2 {[%clk 00:06:32]} {[%emt 00:01:00]} Kf6 {[%clk 00:04:19]} {[%emt 00:01:47]}
58. f4 {[%clk 00:06:19]} {[%emt 00:00:44]} gxf4 {[%clk 00:04:47]} {[%emt
00:00:02]} 59. Nxf4 {[%clk 00:06:43]} {[%emt 00:00:05]} Be5 {[%clk 00:04:56]}
{[%emt 00:00:21]} 60. Nd5+ {[%clk 00:06:16]} {[%emt 00:00:58]} Kg5 {[%clk
00:04:44]} {[%emt 00:00:42]} 61. Nxc3 {[%clk 00:06:35]} {[%emt 00:00:11]} Bxc3
{[%clk 00:02:36]} {[%emt 00:02:38]} 62. Kf3 {[%clk 00:07:02]} {[%emt 00:00:03]}
Kf6 {[%clk 00:02:45]} {[%emt 00:00:22]} 63. Ke4 {[%clk 00:07:24]} {[%emt
00:00:07]} Bb4 {[%clk 00:02:04]} {[%emt 00:01:11]} 64. Bb3 {[%clk 00:07:31]}
{[%emt 00:00:23]} Bc3 {[%clk 00:02:12]} {[%emt 00:00:22]} 65. Ba4 {[%clk
00:07:12]} {[%emt 00:00:49]} Kg5 {[%clk 00:01:24]} {[%emt 00:01:18]} 66. Bd7
{[%clk 00:07:35]} {[%emt 00:00:07]} Kf6 {[%clk 00:01:48]} {[%emt 00:00:06]} 67.
Kd3 {[%clk 00:07:59]} {[%emt 00:00:07]} Be1 {[%clk 00:01:49]} {[%emt 00:00:28]}
68. Kc4 {[%clk 00:08:24]} {[%emt 00:00:05]} Ke5 {[%clk 00:01:58]} {[%emt
00:00:21]} 69. g5 {[%clk 00:08:21]} {[%emt 00:00:33]} Bh4 {[%clk 00:01:56]}
{[%emt 00:00:32]} 70. g6 {[%clk 00:08:47]} {[%emt 00:00:04]} Bf6 {[%clk
00:02:23]} {[%emt 00:00:03]} 71. Kb5 {[%clk 00:09:02]} {[%emt 00:00:15]} Kd6
{[%clk 00:02:46]} {[%emt 00:00:07]} 72. Bh3 {[%clk 00:09:19]} {[%emt 00:00:12]}
Bc3 {[%clk 00:03:10]} {[%emt 00:00:07]} 73. Kc4 {[%clk 00:09:14]} {[%emt
00:00:34]} Bg7 {[%clk 00:02:41]} {[%emt 00:00:59]} 74. c3 {[%clk 00:09:25]}
{[%emt 00:00:19]} Ke5 {[%clk 00:02:31]} {[%emt 00:00:41]} 75. Bf1 {[%clk
00:09:42]} {[%emt 00:00:12]} Kd6 {[%clk 00:02:30]} {[%emt 00:00:31]} 76. Kb4
{[%clk 00:10:00]} {[%emt 00:00:12]} Kc6 {[%clk 00:02:48]} {[%emt 00:00:12]} 77.
c4 {[%clk 00:09:50]} {[%emt 00:00:41]} Bf8+ {[%clk 00:02:51]} {[%emt 00:00:27]}
78. Ka5 {[%clk 00:10:02]} {[%emt 00:00:18]} Kc5 {[%clk 00:03:00]} {[%emt
00:00:20]} 79. Ka6 {[%clk 00:10:18]} {[%emt 00:00:15]} Kc6 {[%clk 00:03:09]}
{[%emt 00:00:21]} 80. Bg2 {[%clk 00:10:37]} {[%emt 00:00:09]} Kc5 {[%clk
00:03:14]} {[%emt 00:00:26]} 81. Bd5 {[%clk 00:11:04]} {[%emt 00:00:03]} Bg7
{[%clk 00:02:42]} {[%emt 00:01:03]} 82. Kb7 {[%clk 00:11:30]} {[%emt 00:00:04]}
Kd6 {[%clk 00:03:06]} {[%emt 00:00:06]} 83. Kb6 {[%clk 00:11:05]} {[%emt
00:00:55]} Bd4+ {[%clk 00:03:20]} {[%emt 00:00:16]} 84. Kb5 {[%clk 00:11:25]}
{[%emt 00:00:09]} Be5 {[%clk 00:03:46]} {[%emt 00:00:04]} 85. Be4 {[%clk
00:11:46]} {[%emt 00:00:09]} Bd4 {[%clk 00:04:08]} {[%emt 00:00:09]} 86. c5+
{[%clk 00:12:06]} {[%emt 00:00:10]} Kc7 {[%clk 00:04:02]} {[%emt 00:00:36]} 87.
Kc4 {[%clk 00:12:20]} {[%emt 00:00:16]} Bb2 {[%clk 00:03:39]} {[%emt 00:00:53]}
88. Kd5 {[%clk 00:12:44]} {[%emt 00:00:06]} Kd7 {[%clk 00:04:00]} {[%emt
00:00:09]} 89. Bf5+ {[%clk 00:12:56]} {[%emt 00:00:17]} Kc7 {[%clk 00:03:45]}
{[%emt 00:00:45]} 90. c6 {[%clk 00:13:16]} {[%emt 00:00:10]} Kd8 {[%clk
00:03:54]} {[%emt 00:00:21]} 91. Ke6 {[%clk 00:13:35]} {[%emt 00:00:11]} Kc7
{[%clk 00:04:16]} {[%emt 00:00:09]} 92. Be4 {[%clk 00:13:56]} {[%emt 00:00:08]}
1-0

[Event "NJSK 2022 Jeugd A"]
[Site "Almelo, Netherlands"]
[Date "2022.05.05"]
[Round "5.4"]
[White "Pham, Khoi"]
[Black "Klaren, Duncan"]
[Result "0-1"]
[TimeControl "90min/40moves + 30min + 30sec/move"]
[WhiteElo "2291"]
[BlackElo "1916"]

1. e4 {[%clk 01:30:59]} {[%emt 00:00:01]} c5 {[%clk 01:30:53]} {[%emt
00:00:08]} 2. Nf3 {[%clk 01:31:26]} {[%emt 00:00:03]} d6 {[%clk 01:31:17]}
{[%emt 00:00:06]} 3. d4 {[%clk 01:31:53]} {[%emt 00:00:03]} cxd4 {[%clk
01:31:41]} {[%emt 00:00:05]} 4. Nxd4 {[%clk 01:32:18]} {[%emt 00:00:05]} Nf6
{[%clk 01:32:06]} {[%emt 00:00:06]} 5. Nc3 {[%clk 01:32:43]} {[%emt 00:00:04]}
a6 {[%clk 01:32:31]} {[%emt 00:00:06]} 6. Bg5 {[%clk 01:33:09]} {[%emt
00:00:04]} e6 {[%clk 01:32:55]} {[%emt 00:00:05]} 7. f4 {[%clk 01:33:30]}
{[%emt 00:00:09]} Be7 {[%clk 01:33:20]} {[%emt 00:00:05]} 8. Qf3 {[%clk
01:33:30]} {[%emt 00:00:30]} Qc7 {[%clk 01:33:38]} {[%emt 00:00:13]} 9. O-O-O
{[%clk 01:33:50]} {[%emt 00:00:10]} Nbd7 {[%clk 01:34:02]} {[%emt 00:00:06]} 10.
g4 {[%clk 01:34:09]} {[%emt 00:00:11]} b5 {[%clk 01:34:14]} {[%emt 00:00:18]}
11. Bxf6 {[%clk 01:33:45]} {[%emt 00:00:53]} Nxf6 {[%clk 01:34:15]} {[%emt
00:00:29]} 12. g5 {[%clk 01:34:08]} {[%emt 00:00:08]} Nd7 {[%clk 01:34:39]}
{[%emt 00:00:06]} 13. f5 {[%clk 01:33:57]} {[%emt 00:00:40]} O-O {[%clk
01:34:25]} {[%emt 00:00:45]} 14. Rg1 {[%clk 01:33:16]} {[%emt 00:01:11]} b4
{[%clk 01:34:07]} {[%emt 00:00:48]} 15. Nce2 {[%clk 01:31:57]} {[%emt
00:01:48]} e5 {[%clk 01:33:13]} {[%emt 00:01:24]} 16. f6 {[%clk 01:31:13]}
{[%emt 00:01:13]} exd4 {[%clk 01:33:30]} {[%emt 00:00:14]} 17. fxe7 {[%clk
01:31:38]} {[%emt 00:00:05]} Re8 {[%clk 01:33:53]} {[%emt 00:00:08]} 18. Nxd4
{[%clk 01:31:33]} {[%emt 00:00:34]} Ne5 {[%clk 01:33:11]} {[%emt 00:01:12]} 19.
Qb3 {[%clk 01:30:41]} {[%emt 00:01:22]} Qc5 {[%clk 01:25:56]} {[%emt 00:07:45]}
20. h4 {[%clk 01:06:19]} {[%emt 00:24:51]} Rxe7 {[%clk 01:08:02]} {[%emt
00:18:25]} 21. Qg3 {[%clk 00:31:53]} {[%emt 00:34:56]} Bg4 {[%clk 00:44:48]}
{[%emt 00:23:44]} 22. Be2 {[%clk 00:22:10]} {[%emt 00:10:13]} Bxe2 {[%clk
00:42:45]} {[%emt 00:02:33]} 23. Nxe2 {[%clk 00:22:36]} {[%emt 00:00:04]} Qc4
{[%clk 00:41:35]} {[%emt 00:01:40]} 24. Nd4 {[%clk 00:18:49]} {[%emt 00:04:17]}
Qxa2 {[%clk 00:40:55]} {[%emt 00:01:11]} 25. Qb3 {[%clk 00:19:16]} {[%emt
00:00:03]} Qxb3 {[%clk 00:39:27]} {[%emt 00:01:57]} 26. Nxb3 {[%clk 00:19:39]}
{[%emt 00:00:06]} Nc4 {[%clk 00:38:22]} {[%emt 00:01:35]} 27. Rd4 {[%clk
00:19:36]} {[%emt 00:00:34]} Rc7 {[%clk 00:38:20]} {[%emt 00:00:32]} 28. Rg3
{[%clk 00:14:57]} {[%emt 00:05:08]} Rac8 {[%clk 00:24:47]} {[%emt 00:14:04]} 29.
Rd5 {[%clk 00:12:55]} {[%emt 00:02:32]} Re7 {[%clk 00:20:02]} {[%emt 00:05:15]}
30. Rd4 {[%clk 00:12:39]} {[%emt 00:00:45]} a5 {[%clk 00:18:40]} {[%emt
00:01:53]} 31. Nd2 {[%clk 00:12:42]} {[%emt 00:00:27]} Nxd2 {[%clk 00:16:32]}
{[%emt 00:02:38]} 32. Kxd2 {[%clk 00:12:50]} {[%emt 00:00:21]} Rec7 {[%clk
00:14:16]} {[%emt 00:02:46]} 33. c3 {[%clk 00:13:03]} {[%emt 00:00:18]} Rc4
{[%clk 00:12:09]} {[%emt 00:02:37]} 34. Kd3 {[%clk 00:11:42]} {[%emt 00:01:51]}
Rxc3+ {[%clk 00:12:12]} {[%emt 00:00:27]} 35. bxc3 {[%clk 00:11:52]} {[%emt
00:00:20]} Rxc3+ {[%clk 00:12:37]} {[%emt 00:00:05]} 36. Kd2 {[%clk 00:12:16]}
{[%emt 00:00:05]} Rxg3 {[%clk 00:13:01]} {[%emt 00:00:06]} 37. Rxd6 {[%clk
00:12:42]} {[%emt 00:00:04]} g6 {[%clk 00:12:22]} {[%emt 00:01:09]} 0-1

[Event "NJSK 2022 Jeugd A"]
[Site "Almelo, Netherlands"]
[Date "2022.05.05"]
[Round "5.5"]
[White "Boeren, Jurriaan"]
[Black "Van Dam, Thijs"]
[Result "1/2-1/2"]
[TimeControl "90min/40moves + 30min + 30sec/move"]
[WhiteElo "1778"]
[BlackElo "1903"]

1. e4 {[%clk 01:30:57]} {[%emt 00:00:02]} c5 {[%clk 01:30:53]} {[%emt
00:00:07]} 2. Nf3 {[%clk 01:31:23]} {[%emt 00:00:04]} Nc6 {[%clk 01:31:11]}
{[%emt 00:00:12]} 3. d4 {[%clk 01:31:48]} {[%emt 00:00:06]} cxd4 {[%clk
01:31:36]} {[%emt 00:00:05]} 4. Nxd4 {[%clk 01:32:13]} {[%emt 00:00:05]} Nf6
{[%clk 01:31:55]} {[%emt 00:00:10]} 5. Nc3 {[%clk 01:32:03]} {[%emt 00:00:41]}
g6 {[%clk 01:32:19]} {[%emt 00:00:06]} 6. Be3 {[%clk 01:30:08]} {[%emt
00:02:25]} Bg7 {[%clk 01:32:35]} {[%emt 00:00:13]} 7. Be2 {[%clk 01:27:05]}
{[%emt 00:03:34]} O-O {[%clk 01:32:48]} {[%emt 00:00:16]} 8. Qd2 {[%clk
01:25:23]} {[%emt 00:02:12]} d5 {[%clk 01:32:49]} {[%emt 00:00:30]} 9. exd5
{[%clk 01:22:23]} {[%emt 00:03:30]} Nxd5 {[%clk 01:33:01]} {[%emt 00:00:17]} 10.
Nxd5 {[%clk 01:22:09]} {[%emt 00:00:44]} Qxd5 {[%clk 01:29:34]} {[%emt
00:03:57]} 11. Bf3 {[%clk 01:01:00]} {[%emt 00:21:40]} Qe5 {[%clk 01:19:23]}
{[%emt 00:10:40]} 12. Nxc6 {[%clk 01:00:57]} {[%emt 00:00:34]} bxc6 {[%clk
01:19:32]} {[%emt 00:00:20]} 13. c3 {[%clk 00:48:40]} {[%emt 00:12:47]} Ba6
{[%clk 01:16:31]} {[%emt 00:03:31]} 14. Be2 {[%clk 00:41:47]} {[%emt 00:07:23]}
Rfd8 {[%clk 01:15:00]} {[%emt 00:02:01]} 15. Qc2 {[%clk 00:41:46]} {[%emt
00:00:31]} Bxe2 {[%clk 01:11:40]} {[%emt 00:03:50]} 16. Qxe2 {[%clk 00:42:03]}
{[%emt 00:00:13]} Rab8 {[%clk 01:05:13]} {[%emt 00:06:56]} 17. O-O {[%clk
00:40:00]} {[%emt 00:02:34]} Bh6 {[%clk 01:02:55]} {[%emt 00:02:49]} 18. Rab1
{[%clk 00:33:13]} {[%emt 00:07:17]} Bxe3 {[%clk 01:01:46]} {[%emt 00:01:39]} 19.
Qxe3 {[%clk 00:26:57]} {[%emt 00:06:46]} Qxe3 {[%clk 01:01:24]} {[%emt
00:00:52]} 20. fxe3 {[%clk 00:27:21]} {[%emt 00:00:06]} Rd3 {[%clk 01:01:24]}
{[%emt 00:00:29]} 21. c4 {[%emt 00:03:25]} Rxe3 {[%clk 01:01:25]} 22. Kf2
{[%clk 00:25:01]} {[%emt 00:00:24]} Rd3 {[%clk 01:01:40]} {[%emt 00:00:15]} 23.
Rfe1 {[%clk 00:20:55]} {[%emt 00:04:36]} e6 {[%clk 01:00:27]} {[%emt 00:01:43]}
24. Re2 {[%clk 00:19:36]} {[%emt 00:01:49]} Kg7 {[%clk 01:00:25]} {[%emt
00:00:31]} 25. Rc2 {[%clk 00:18:45]} {[%emt 00:01:21]} c5 {[%clk 01:00:01]}
{[%emt 00:00:54]} 26. Ke2 {[%clk 00:16:30]} {[%emt 00:02:45]} Rd4 {[%clk
00:58:46]} {[%emt 00:01:46]} 27. Ke3 {[%clk 00:15:36]} {[%emt 00:01:23]} Rb4
{[%clk 00:56:39]} {[%emt 00:02:38]} 28. b3 {[%clk 00:15:28]} {[%emt 00:00:38]}
Rb6 {[%clk 00:56:34]} {[%emt 00:00:35]} 29. b4 {[%clk 00:14:31]} {[%emt
00:01:28]} e5 {[%clk 00:56:50]} {[%emt 00:00:13]} 30. b5 {[%clk 00:13:46]}
{[%emt 00:01:16]} a6 {[%clk 00:56:44]} {[%emt 00:00:36]} 31. a4 {[%clk
00:13:57]} {[%emt 00:00:19]} a5 {[%clk 00:56:55]} {[%emt 00:00:19]} 32. Rb3
{[%clk 00:11:54]} {[%emt 00:02:32]} Kf6 {[%clk 00:55:32]} {[%emt 00:01:53]} 33.
Rd3 {[%clk 00:12:01]} {[%emt 00:00:24]} Ke6 {[%clk 00:54:00]} {[%emt 00:02:01]}
34. Rxd4 {[%clk 00:12:02]} {[%emt 00:00:29]} exd4+ {[%clk 00:54:18]} {[%emt
00:00:12]} 35. Kd3 {[%clk 00:12:22]} {[%emt 00:00:10]} h5 {[%clk 00:49:24]}
{[%emt 00:05:24]} 36. Re2+ {[%clk 00:11:21]} {[%emt 00:01:31]} Kd7 {[%clk
00:47:18]} {[%emt 00:02:36]} 37. Re5 {[%clk 00:10:42]} {[%emt 00:01:09]} Rf6
{[%clk 00:47:24]} {[%emt 00:00:24]} 38. Rxc5 {[%clk 00:10:48]} {[%emt
00:00:25]} Rf2 {[%clk 00:47:33]} {[%emt 00:00:20]} 39. b6 {[%clk 00:08:56]}
{[%emt 00:02:23]} Rxg2 {[%clk 00:47:06]} {[%emt 00:00:56]} 40. b7 {[%clk
00:07:42]} {[%emt 00:01:45]} Rb2 {[%clk 00:47:26]} {[%emt 00:00:10]} 41. Rb5
{[%clk 00:07:42]} {[%emt 00:00:29]} Rxb5 {[%clk 00:47:47]} {[%emt 00:00:09]} 42.
cxb5 {[%clk 00:08:04]} {[%emt 00:00:08]} Kc7 {[%clk 00:48:14]} {[%emt
00:00:03]} 43. b8=B+ {[%emt 00:00:43]} Kxb8 {[%clk 00:48:37]} {[%emt 00:00:05]}
44. Kxd4 {[%clk 00:08:16]} {[%emt 00:00:07]} f6 {[%clk 00:48:04]} {[%emt
00:01:03]} 45. Ke4 {[%clk 00:08:02]} {[%emt 00:00:44]} Kc7 {[%clk 00:47:50]}
{[%emt 00:00:44]} 46. h4 {[%clk 00:07:43]} {[%emt 00:00:49]} Kd6 {[%clk
00:47:54]} {[%emt 00:00:26]} 47. Kf4 {[%clk 00:07:34]} {[%emt 00:00:39]} Kd5
{[%clk 00:48:16]} {[%emt 00:00:09]} 48. Kf3 {[%clk 00:07:51]} {[%emt 00:00:12]}
Ke5 {[%clk 00:48:34]} {[%emt 00:00:11]} 49. Kg3 {[%clk 00:06:00]} {[%emt
00:02:22]} g5 {[%clk 00:48:55]} {[%emt 00:00:09]} 50. hxg5 {[%clk 00:05:55]}
{[%emt 00:00:36]} fxg5 {[%clk 00:49:18]} {[%emt 00:00:05]} 51. Kh3 {[%clk
00:05:49]} {[%emt 00:00:37]} g4+ {[%clk 00:46:40]} {[%emt 00:03:08]} 1/2-1/2

[Event "NJSK 2022 Jeugd A"]
[Site "Almelo, Netherlands"]
[Date "2022.05.05"]
[Round "5.6"]
[White "Verheul, Job"]
[Black "Hooijmans, Max"]
[Result "1-0"]
[TimeControl "90min/40moves + 30min + 30sec/move"]
[WhiteElo "1707"]
[BlackElo "1420"]

1. e4 {[%clk 01:30:58]} {[%emt 00:00:01]} e5 {[%clk 01:30:56]} {[%emt
00:00:04]} 2. Nf3 {[%clk 01:31:23]} {[%emt 00:00:05]} Nc6 {[%clk 01:31:21]}
{[%emt 00:00:06]} 3. Bb5 {[%clk 01:31:49]} {[%emt 00:00:04]} a6 {[%clk
01:31:40]} {[%emt 00:00:11]} 4. Ba4 {[%clk 01:32:13]} {[%emt 00:00:06]} b5
{[%clk 01:32:02]} {[%emt 00:00:08]} 5. Bb3 {[%clk 01:32:37]} {[%emt 00:00:05]}
Bc5 {[%clk 01:32:02]} {[%emt 00:00:30]} 6. O-O {[%clk 01:31:41]} {[%emt
00:01:26]} Nf6 {[%clk 01:31:33]} {[%emt 00:00:59]} 7. c3 {[%clk 01:25:33]}
{[%emt 00:06:39]} d6 {[%clk 01:29:13]} {[%emt 00:02:50]} 8. d4 {[%clk
01:25:35]} {[%emt 00:00:27]} exd4 {[%clk 01:29:25]} {[%emt 00:00:19]} 9. cxd4
{[%clk 01:25:54]} {[%emt 00:00:11]} Bb6 {[%clk 01:29:13]} {[%emt 00:00:41]} 10.
h3 {[%clk 01:20:11]} {[%emt 00:06:13]} h6 {[%clk 01:28:25]} {[%emt 00:01:17]}
11. a4 {[%clk 01:13:21]} {[%emt 00:07:21]} b4 {[%clk 01:23:34]} {[%emt
00:05:22]} 12. Qd3 {[%clk 01:00:57]} {[%emt 00:12:53]} Qe7 {[%clk 01:20:20]}
{[%emt 00:03:44]} 13. Bf4 {[%clk 00:47:33]} {[%emt 00:13:54]} g5 {[%clk
01:03:24]} {[%emt 00:17:27]} 14. e5 {[%clk 00:37:39]} {[%emt 00:10:24]} gxf4
{[%clk 01:00:19]} {[%emt 00:03:34]} 15. exf6 {[%clk 00:37:45]} {[%emt
00:00:24]} Qxf6 {[%clk 01:00:28]} {[%emt 00:00:21]} 16. Qe4+ {[%clk 00:30:55]}
{[%emt 00:07:20]} Kd7 {[%clk 00:59:13]} {[%emt 00:01:45]} 17. Bd5 {[%clk
00:17:12]} {[%emt 00:14:13]} Bb7 {[%clk 00:47:20]} {[%emt 00:12:24]} 18. Rc1
{[%clk 00:17:36]} {[%emt 00:00:06]} Nxd4 {[%clk 00:37:19]} {[%emt 00:10:31]} 19.
Bxb7 {[%clk 00:17:54]} {[%emt 00:00:12]} Nb3 {[%clk 00:37:06]} {[%emt
00:00:42]} 20. Bxa8 {[%clk 00:14:12]} {[%emt 00:04:13]} Qxb2 {[%clk 00:34:36]}
{[%emt 00:03:00]} 21. Nbd2 {[%clk 00:12:14]} {[%emt 00:02:28]} Nxa1 {[%clk
00:32:30]} {[%emt 00:02:35]} 22. Re1 {[%clk 00:10:11]} {[%emt 00:02:33]} Qf6
{[%clk 00:28:50]} {[%emt 00:04:11]} 23. Bc6+ {[%clk 00:10:28]} {[%emt
00:00:12]} Kc8 {[%clk 00:29:01]} {[%emt 00:00:19]} 24. Qe2 {[%clk 00:09:30]}
{[%emt 00:01:29]} 1-0